[Event "*** Titled Tuesday Blitz"]
[Site "Chess.com"]
[Date "2020.03.03"]
[Round "6"]
[White "MiroVlasenko"]
[Black "124chess"]
[Result "1-0"]
[WhiteElo "2634"]
[BlackElo "2471"]
[TimeControl "180+1"]
[EndTime "10:03:39 PST"]
[Termination "MiroVlasenko won by checkmate"]

1. d4 {[%clk 0:03:00.9]} 1... d5 {[%clk 0:02:59.4]} 2. Bf4 {[%clk 0:03:00.4]}
2... c5 {[%clk 0:02:58.3]} 3. e3 {[%clk 0:02:59.5]} 3... Nc6 {[%clk 0:02:58.8]}
4. c3 {[%clk 0:02:58.8]} 4... Bf5 {[%clk 0:02:58.7]} 5. Nf3 {[%clk 0:02:57]}
5... e6 {[%clk 0:02:57.9]} 6. Nbd2 {[%clk 0:02:55.3]} 6... Bd6 {[%clk 0:02:56]}
7. Bxd6 {[%clk 0:02:51.2]} 7... Qxd6 {[%clk 0:02:55.8]} 8. Nh4 {[%clk
0:02:51.8]} 8... Bg6 {[%clk 0:02:54.5]} 9. Qb3 {[%clk 0:02:47.5]} 9... Rb8
{[%clk 0:02:52.3]} 10. Qa3 {[%clk 0:02:46.1]} 10... b6 {[%clk 0:02:39.2]} 11.
Bb5 {[%clk 0:02:45.3]} 11... Ne7 {[%clk 0:02:38.8]} 12. Qxa7 {[%clk 0:02:39.1]}
12... O-O {[%clk 0:02:38.3]} 13. Qa4 {[%clk 0:02:38.5]} 13... e5 {[%clk
0:02:22]} 14. Nxg6 {[%clk 0:02:35.8]} 14... hxg6 {[%clk 0:02:18.5]} 15. O-O
{[%clk 0:02:22.4]} 15... exd4 {[%clk 0:02:07.8]} 16. cxd4 {[%clk 0:02:15.9]}
16... cxd4 {[%clk 0:01:59.7]} 17. exd4 {[%clk 0:02:11.9]} 17... Ra8 {[%clk
0:01:59.6]} 18. Qd1 {[%clk 0:02:11.1]} 18... Nxd4 {[%clk 0:01:59.6]} 19. Bd3
{[%clk 0:02:11.6]} 19... Ne6 {[%clk 0:01:55.6]} 20. Nf3 {[%clk 0:02:10.6]} 20...
Nc5 {[%clk 0:01:46.5]} 21. Bc2 {[%clk 0:02:09.9]} 21... Nc6 {[%clk 0:01:46.5]}
22. Nd4 {[%clk 0:02:05]} 22... Nxd4 {[%clk 0:01:46.4]} 23. Qxd4 {[%clk
0:02:04.3]} 23... Ne6 {[%clk 0:01:47]} 24. Qd2 {[%clk 0:02:03.9]} 24... Qe5
{[%clk 0:01:42.1]} 25. Bb3 {[%clk 0:01:59.9]} 25... Nd4 {[%clk 0:01:41.6]} 26.
Bd1 {[%clk 0:01:58]} 26... Rfe8 {[%clk 0:01:38.1]} 27. a3 {[%clk 0:01:55.8]}
27... g5 {[%clk 0:01:30]} 28. Rc1 {[%clk 0:01:54.5]} 28... g6 {[%clk 0:01:30.3]}
29. Rc3 {[%clk 0:01:53.6]} 29... Kg7 {[%clk 0:01:27.9]} 30. Rd3 {[%clk
0:01:51.7]} 30... Rh8 {[%clk 0:01:09.2]} 31. h3 {[%clk 0:01:47.3]} 31... Ne6
{[%clk 0:01:05]} 32. Re1 {[%clk 0:01:38.7]} 32... Qf6 {[%clk 0:01:04.7]} 33.
Rxd5 {[%clk 0:01:33.8]} 33... Rad8 {[%clk 0:01:03.1]} 34. Bb3 {[%clk 0:01:28.4]}
34... Nf4 {[%clk 0:01:01.6]} 35. Rxd8 {[%clk 0:01:18.8]} 35... Rxd8 {[%clk
0:01:02.5]} 36. Qc2 {[%clk 0:01:19.1]} 36... Qd4 {[%clk 0:00:41.4]} 37. Rd1
{[%clk 0:01:13.8]} 37... Qf6 {[%clk 0:00:36.1]} 38. Rxd8 {[%clk 0:01:08.9]}
38... Qxd8 {[%clk 0:00:37]} 39. Kf1 {[%clk 0:01:07.2]} 39... Qa8 {[%clk
0:00:32.4]} 40. Qc3+ {[%clk 0:00:59.1]} 40... f6 {[%clk 0:00:23.2]} 41. f3
{[%clk 0:00:55.5]} 41... Qd8 {[%clk 0:00:20.4]} 42. Bc2 {[%clk 0:00:46.2]} 42...
Qe7 {[%clk 0:00:19.9]} 43. Qd2 {[%clk 0:00:43.8]} 43... Nh5 {[%clk 0:00:18.9]}
44. Kf2 {[%clk 0:00:42.9]} 44... Nf4 {[%clk 0:00:18.2]} 45. b4 {[%clk
0:00:39.7]} 45... f5 {[%clk 0:00:18.4]} 46. Qc3+ {[%clk 0:00:39.4]} 46... Kh7
{[%clk 0:00:18.3]} 47. Qd2 {[%clk 0:00:39]} 47... Nh5 {[%clk 0:00:16]} 48. g4
{[%clk 0:00:37.1]} 48... fxg4 {[%clk 0:00:14.8]} 49. hxg4 {[%clk 0:00:36.7]}
49... Nf4 {[%clk 0:00:14.9]} 50. Qe3 {[%clk 0:00:35.9]} 50... Qc7 {[%clk
0:00:13.9]} 51. Qe4 {[%clk 0:00:33.6]} 51... b5 {[%clk 0:00:12.1]} 52. Bb3
{[%clk 0:00:31]} 52... Nh3+ {[%clk 0:00:12.3]} 53. Ke2 {[%clk 0:00:29.6]} 53...
Nf4+ {[%clk 0:00:12.3]} 54. Kd2 {[%clk 0:00:29.9]} 54... Qd6+ {[%clk 0:00:11.6]}
55. Kc1 {[%clk 0:00:26.9]} 55... Qa6 {[%clk 0:00:09.8]} 56. Qe7+ {[%clk
0:00:25.6]} 56... Kh6 {[%clk 0:00:07]} 57. Qf8+ {[%clk 0:00:25.3]} 57... Kh7
{[%clk 0:00:07.7]} 58. Qg8+ {[%clk 0:00:25.4]} 58... Kh6 {[%clk 0:00:07.3]} 59.
Qh8# {[%clk 0:00:25.8]} 1-0

[Event "*** Titled Tuesday Blitz"]
[Site "Chess.com"]
[Date "2020.03.03"]
[Round "6"]
[White "DenishevM"]
[Black "adricalderon8"]
[Result "0-1"]
[WhiteElo "2581"]
[BlackElo "2425"]
[TimeControl "180+1"]
[EndTime "10:03:39 PST"]
[Termination "adricalderon8 won on time"]

1. d4 {[%clk 0:03:00.6]} 1... Nf6 {[%clk 0:02:59.7]} 2. c4 {[%clk 0:02:56.6]}
2... g6 {[%clk 0:02:59.9]} 3. Nc3 {[%clk 0:02:52.4]} 3... d5 {[%clk 0:03:00.3]}
4. cxd5 {[%clk 0:02:53.3]} 4... Nxd5 {[%clk 0:03:01.2]} 5. e4 {[%clk 0:02:54.2]}
5... Nxc3 {[%clk 0:03:01.5]} 6. bxc3 {[%clk 0:02:55.1]} 6... Bg7 {[%clk
0:03:02.4]} 7. Nf3 {[%clk 0:02:56]} 7... c5 {[%clk 0:03:02.3]} 8. Be3 {[%clk
0:02:56.2]} 8... b6 {[%clk 0:03:00.8]} 9. Bb5+ {[%clk 0:02:52.7]} 9... Nd7
{[%clk 0:02:59]} 10. O-O {[%clk 0:02:51.6]} 10... O-O {[%clk 0:02:58.7]} 11. Bc6
{[%clk 0:02:47.5]} 11... Rb8 {[%clk 0:02:56.6]} 12. Bf4 {[%clk 0:02:48.1]} 12...
Ba6 {[%clk 0:02:55.3]} 13. Re1 {[%clk 0:02:39.7]} 13... Rc8 {[%clk 0:02:48.1]}
14. Ba4 {[%clk 0:02:40]} 14... cxd4 {[%clk 0:02:35.4]} 15. cxd4 {[%clk
0:02:38.9]} 15... Bc4 {[%clk 0:02:31.7]} 16. Qd2 {[%clk 0:02:29.4]} 16... b5
{[%clk 0:02:31.7]} 17. Bb3 {[%clk 0:02:28.4]} 17... Nb6 {[%clk 0:02:31.5]} 18.
Rad1 {[%clk 0:02:25.8]} 18... e6 {[%clk 0:02:25.3]} 19. h4 {[%clk 0:02:21]}
19... h5 {[%clk 0:02:23.6]} 20. Bh6 {[%clk 0:02:11]} 20... Qc7 {[%clk
0:02:15.4]} 21. Bxg7 {[%clk 0:02:09]} 21... Kxg7 {[%clk 0:02:15.2]} 22. Qg5
{[%clk 0:02:09.8]} 22... Qd8 {[%clk 0:02:03.5]} 23. Qg3 {[%clk 0:02:07.6]} 23...
Qf6 {[%clk 0:01:57.1]} 24. Ng5 {[%clk 0:02:00.7]} 24... Rfd8 {[%clk 0:01:54.2]}
25. Re3 {[%clk 0:01:29.2]} 25... Rxd4 {[%clk 0:01:50.7]} 26. Rf3 {[%clk
0:01:29.4]} 26... Rxd1+ {[%clk 0:01:41.9]} 27. Bxd1 {[%clk 0:01:30.3]} 27... Qa1
{[%clk 0:01:33.9]} 28. Rxf7+ {[%clk 0:01:29.5]} 28... Kg8 {[%clk 0:01:33.6]} 29.
Qf3 {[%clk 0:01:00.2]} 29... Rd8 {[%clk 0:01:26.3]} 30. Kh2 {[%clk 0:00:52.6]}
30... Nd7 {[%clk 0:00:44.8]} 31. Bb3 {[%clk 0:00:28.5]} 31... Ne5 {[%clk
0:00:39.5]} 32. Qf4 {[%clk 0:00:22.5]} 32... Ng4+ {[%clk 0:00:32.9]} 33. Kg3
{[%clk 0:00:22.6]} 33... Qe5 {[%clk 0:00:27.2]} 34. Qxe5 {[%clk 0:00:12.6]}
34... Nxe5 {[%clk 0:00:27.5]} 35. Rxa7 {[%clk 0:00:13.5]} 35... Bxb3 {[%clk
0:00:25.3]} 36. axb3 {[%clk 0:00:14]} 36... Rd3+ {[%clk 0:00:25.8]} 37. Kf4
{[%clk 0:00:13]} 37... Ng4 {[%clk 0:00:23.9]} 38. Ra8+ {[%clk 0:00:08.3]} 38...
Kg7 {[%clk 0:00:23.6]} 39. Nxe6+ {[%clk 0:00:08.7]} 39... Kf6 {[%clk 0:00:24]}
40. f3 {[%clk 0:00:03.4]} 40... Kxe6 {[%clk 0:00:16]} 0-1

[Event "*** Titled Tuesday Blitz"]
[Site "Chess.com"]
[Date "2020.03.03"]
[Round "6"]
[White "shanemelaughcm"]
[Black "annacramling"]
[Result "1-0"]
[WhiteElo "2256"]
[BlackElo "1925"]
[TimeControl "180+1"]
[EndTime "10:03:42 PST"]
[Termination "shanemelaughcm won on time"]

1. e4 {[%clk 0:03:00.6]} 1... c5 {[%clk 0:02:59.4]} 2. c4 {[%clk 0:02:59.8]}
2... Nc6 {[%clk 0:02:57.8]} 3. Nc3 {[%clk 0:02:59.9]} 3... d6 {[%clk 0:02:51]}
4. g3 {[%clk 0:02:51.5]} 4... e6 {[%clk 0:02:45.2]} 5. Bg2 {[%clk 0:02:51.6]}
5... Nf6 {[%clk 0:02:44.3]} 6. Nge2 {[%clk 0:02:51.1]} 6... Be7 {[%clk
0:02:41.1]} 7. O-O {[%clk 0:02:51.6]} 7... O-O {[%clk 0:02:40.4]} 8. d4 {[%clk
0:02:51.8]} 8... cxd4 {[%clk 0:02:39.7]} 9. Nxd4 {[%clk 0:02:52.7]} 9... a6
{[%clk 0:02:31.7]} 10. Be3 {[%clk 0:02:28]} 10... Ne5 {[%clk 0:02:23.3]} 11. Qe2
{[%clk 0:02:23.2]} 11... Bd7 {[%clk 0:02:10.6]} 12. h3 {[%clk 0:02:16.1]} 12...
Rc8 {[%clk 0:02:05.6]} 13. b3 {[%clk 0:02:15.7]} 13... Qa5 {[%clk 0:02:04.2]}
14. Bd2 {[%clk 0:02:04.1]} 14... Qb6 {[%clk 0:02:01.3]} 15. Be3 {[%clk
0:02:04.3]} 15... Qa5 {[%clk 0:01:56.2]} 16. Bd2 {[%clk 0:01:53.2]} 16... Qb6
{[%clk 0:01:55.5]} 17. Nf3 {[%clk 0:01:53]} 17... Bc6 {[%clk 0:01:40.9]} 18.
Nxe5 {[%clk 0:01:51.2]} 18... dxe5 {[%clk 0:01:40.6]} 19. Be3 {[%clk 0:01:46.6]}
19... Qa5 {[%clk 0:01:30.5]} 20. Qb2 {[%clk 0:01:45.9]} 20... Bb4 {[%clk
0:01:25.2]} 21. Bd2 {[%clk 0:01:46]} 21... Rfd8 {[%clk 0:01:19.7]} 22. Rfc1
{[%clk 0:01:44.3]} 22... Nxe4 {[%clk 0:01:12.7]} 23. Bxe4 {[%clk 0:01:43.8]}
23... Bxe4 {[%clk 0:01:11.1]} 24. a3 {[%clk 0:01:38.7]} 24... Bxc3 {[%clk
0:01:06.8]} 25. Bxc3 {[%clk 0:01:38.9]} 25... Qb6 {[%clk 0:00:59]} 26. Bxe5
{[%clk 0:01:36.8]} 26... f6 {[%clk 0:00:48.4]} 27. Bf4 {[%clk 0:01:30.7]} 27...
Qc6 {[%clk 0:00:46.2]} 28. Kh2 {[%clk 0:01:29.6]} 28... Rd3 {[%clk 0:00:37.5]}
29. Rd1 {[%clk 0:01:26.1]} 29... Rcd8 {[%clk 0:00:37.2]} 30. Rxd3 {[%clk
0:01:18.7]} 30... Rxd3 {[%clk 0:00:35.7]} 31. Re1 {[%clk 0:01:18.6]} 31... Bf3
{[%clk 0:00:28.1]} 32. Qc2 {[%clk 0:01:12.3]} 32... Rd8 {[%clk 0:00:11.7]} 33.
b4 {[%clk 0:00:58.2]} 33... Bd5 {[%clk 0:00:06.6]} 34. Rc1 {[%clk 0:00:54.6]}
34... Be4 {[%clk 0:00:04.1]} 35. Qb2 {[%clk 0:00:47]} 35... Bf5 {[%clk
0:00:04.2]} 36. c5 {[%clk 0:00:39.8]} 36... Qf3 {[%clk 0:00:04.1]} 37. Qc3
{[%clk 0:00:10.8]} 37... Rd3 {[%clk 0:00:02.1]} 38. Qe1 {[%clk 0:00:03.4]} 38...
Be4 {[%clk 0:00:02.2]} 39. Qg1 {[%clk 0:00:02]} 39... e5 {[%clk 0:00:02.5]} 40.
Be3 {[%clk 0:00:01.2]} 1-0

[Event "*** Titled Tuesday Blitz"]
[Site "Chess.com"]
[Date "2020.03.03"]
[Round "6"]
[White "Manukyan_Artak"]
[Black "MikeSailer"]
[Result "1-0"]
[WhiteElo "2416"]
[BlackElo "2111"]
[TimeControl "180+1"]
[EndTime "10:03:48 PST"]
[Termination "Manukyan_Artak won on time"]

1. e4 {[%clk 0:03:00.9]} 1... d5 {[%clk 0:02:58.8]} 2. exd5 {[%clk 0:03:00.1]}
2... Qxd5 {[%clk 0:02:57.9]} 3. Nc3 {[%clk 0:02:59.9]} 3... Qd6 {[%clk
0:02:58.1]} 4. g3 {[%clk 0:02:58.3]} 4... Nf6 {[%clk 0:02:57.2]} 5. Bg2 {[%clk
0:02:58.4]} 5... c6 {[%clk 0:02:57.4]} 6. d4 {[%clk 0:02:54.8]} 6... Bf5 {[%clk
0:02:55]} 7. Nge2 {[%clk 0:02:49.7]} 7... e6 {[%clk 0:02:53.8]} 8. O-O {[%clk
0:02:48.7]} 8... Be7 {[%clk 0:02:51.9]} 9. Bf4 {[%clk 0:02:48.7]} 9... Qd8
{[%clk 0:02:42.3]} 10. h3 {[%clk 0:02:43.6]} 10... O-O {[%clk 0:02:40.1]} 11. g4
{[%clk 0:02:43.8]} 11... Bg6 {[%clk 0:02:39.8]} 12. Ng3 {[%clk 0:02:33]} 12...
Nbd7 {[%clk 0:02:35.3]} 13. Qe2 {[%clk 0:02:29.2]} 13... Nb6 {[%clk 0:02:33.7]}
14. Rad1 {[%clk 0:02:21.1]} 14... Nbd5 {[%clk 0:02:33.2]} 15. Nxd5 {[%clk
0:02:21]} 15... Nxd5 {[%clk 0:02:31.8]} 16. Bc1 {[%clk 0:02:12.5]} 16... Bd6
{[%clk 0:02:19.5]} 17. Ne4 {[%clk 0:02:10.5]} 17... Bf4 {[%clk 0:01:57.2]} 18.
c3 {[%clk 0:01:58.4]} 18... Bxc1 {[%clk 0:01:54.6]} 19. Rxc1 {[%clk 0:01:58.1]}
19... Nf4 {[%clk 0:01:54.3]} 20. Qf3 {[%clk 0:01:57.3]} 20... Nxg2 {[%clk
0:01:48.7]} 21. Kxg2 {[%clk 0:01:52.3]} 21... Qd5 {[%clk 0:01:44.8]} 22. Nc5
{[%clk 0:01:41]} 22... b6 {[%clk 0:01:28.7]} 23. Qxd5 {[%clk 0:01:39.4]} 23...
cxd5 {[%clk 0:01:17.8]} 24. Nd7 {[%clk 0:01:29.3]} 24... Rfd8 {[%clk 0:01:16.7]}
25. Ne5 {[%clk 0:01:29.4]} 25... Rac8 {[%clk 0:01:05.5]} 26. h4 {[%clk
0:01:13.6]} 26... f6 {[%clk 0:01:01.3]} 27. Nxg6 {[%clk 0:01:13.3]} 27... hxg6
{[%clk 0:01:01.4]} 28. f4 {[%clk 0:01:13]} 28... Kf7 {[%clk 0:01:00.6]} 29. Kg3
{[%clk 0:01:08.9]} 29... b5 {[%clk 0:00:59]} 30. a3 {[%clk 0:01:08.8]} 30... a5
{[%clk 0:00:58.9]} 31. Rf3 {[%clk 0:01:06.5]} 31... Rc6 {[%clk 0:00:58.5]} 32.
Ra1 {[%clk 0:01:05.7]} 32... Rdc8 {[%clk 0:00:55.2]} 33. Re3 {[%clk 0:01:05.7]}
33... R8c7 {[%clk 0:00:50.1]} 34. Kf3 {[%clk 0:01:04.2]} 34... Rb7 {[%clk
0:00:50]} 35. Ke2 {[%clk 0:00:55.9]} 35... b4 {[%clk 0:00:49.9]} 36. axb4 {[%clk
0:00:56.8]} 36... axb4 {[%clk 0:00:50.2]} 37. Ra2 {[%clk 0:00:46.8]} 37... bxc3
{[%clk 0:00:45.9]} 38. Rxc3 {[%clk 0:00:45.3]} 38... Rcb6 {[%clk 0:00:37.6]} 39.
Rc2 {[%clk 0:00:42.3]} 39... Rb3 {[%clk 0:00:36.6]} 40. Ra8 {[%clk 0:00:20.2]}
40... Rxb2 {[%clk 0:00:28.1]} 41. Rxb2 {[%clk 0:00:20.1]} 41... Rxb2+ {[%clk
0:00:27.7]} 42. Ke3 {[%clk 0:00:20.5]} 42... Rb3+ {[%clk 0:00:20.6]} 43. Kf2
{[%clk 0:00:18.5]} 43... Rd3 {[%clk 0:00:20.2]} 44. Ra7+ {[%clk 0:00:18.3]}
44... Kg8 {[%clk 0:00:20.2]} 45. Re7 {[%clk 0:00:18.2]} 45... Rxd4 {[%clk
0:00:19.5]} 46. Kf3 {[%clk 0:00:18.8]} 46... Re4 {[%clk 0:00:17.7]} 47. g5
{[%clk 0:00:18.6]} 47... fxg5 {[%clk 0:00:15.4]} 48. hxg5 {[%clk 0:00:19.5]}
48... Kf8 {[%clk 0:00:15]} 49. Rd7 {[%clk 0:00:18.5]} 49... Ra4 {[%clk
0:00:12.4]} 50. Rb7 {[%clk 0:00:15.7]} 50... Ra3+ {[%clk 0:00:10.3]} 51. Kf2
{[%clk 0:00:15.9]} 51... Rc3 {[%clk 0:00:06.2]} 52. Rd7 {[%clk 0:00:15.4]} 52...
Rc8 {[%clk 0:00:02.5]} 53. Ke3 {[%clk 0:00:14.2]} 53... Re8 {[%clk 0:00:02.6]}
54. Kd4 {[%clk 0:00:14.4]} 54... Re7 {[%clk 0:00:03.2]} 55. Rd8+ {[%clk
0:00:14.7]} 55... Kf7 {[%clk 0:00:03.3]} 56. Ke5 {[%clk 0:00:15.4]} 1-0

[Event "*** Titled Tuesday Blitz"]
[Site "Chess.com"]
[Date "2020.03.03"]
[Round "6"]
[White "norwaytoadog"]
[Black "Andrew-FB00"]
[Result "1-0"]
[WhiteElo "2246"]
[BlackElo "1865"]
[TimeControl "180+1"]
[EndTime "10:03:49 PST"]
[Termination "norwaytoadog won by checkmate"]

1. e4 {[%clk 0:03:00.9]} 1... e5 {[%clk 0:02:57.6]} 2. Nf3 {[%clk 0:03:00.5]}
2... Nc6 {[%clk 0:02:57.6]} 3. Bb5 {[%clk 0:03:00.6]} 3... a6 {[%clk 0:02:55.9]}
4. Ba4 {[%clk 0:03:00.5]} 4... Nf6 {[%clk 0:02:54.3]} 5. O-O {[%clk 0:03:00.5]}
5... b5 {[%clk 0:02:46.2]} 6. Bb3 {[%clk 0:03:00.3]} 6... Bc5 {[%clk 0:02:46]}
7. d3 {[%clk 0:02:57.4]} 7... h6 {[%clk 0:02:43.5]} 8. a4 {[%clk 0:02:57]} 8...
Rb8 {[%clk 0:02:42]} 9. c3 {[%clk 0:02:54.7]} 9... d6 {[%clk 0:02:41.1]} 10. h3
{[%clk 0:02:52.2]} 10... O-O {[%clk 0:02:40.2]} 11. d4 {[%clk 0:02:50.9]} 11...
Bb6 {[%clk 0:02:36.8]} 12. Re1 {[%clk 0:02:45.5]} 12... Qe7 {[%clk 0:02:17.6]}
13. Na3 {[%clk 0:02:40.2]} 13... b4 {[%clk 0:02:08.2]} 14. Nc4 {[%clk
0:02:34.7]} 14... bxc3 {[%clk 0:01:54.7]} 15. bxc3 {[%clk 0:02:29.7]} 15... Na5
{[%clk 0:01:54.4]} 16. Nxa5 {[%clk 0:02:04.1]} 16... Bxa5 {[%clk 0:01:52.9]} 17.
Bd2 {[%clk 0:01:51.6]} 17... Bb7 {[%clk 0:01:42.8]} 18. d5 {[%clk 0:01:43.4]}
18... c6 {[%clk 0:01:32.5]} 19. c4 {[%clk 0:01:38.6]} 19... Bxd2 {[%clk
0:01:32]} 20. Qxd2 {[%clk 0:01:29.6]} 20... c5 {[%clk 0:01:27.6]} 21. Bc2 {[%clk
0:01:19]} 21... Bc8 {[%clk 0:01:24.9]} 22. Rab1 {[%clk 0:01:15.4]} 22... Bd7
{[%clk 0:01:17.5]} 23. Qa5 {[%clk 0:01:11.1]} 23... Nh5 {[%clk 0:01:05.4]} 24.
Qc7 {[%clk 0:01:06.9]} 24... Rbc8 {[%clk 0:00:59.3]} 25. Qa7 {[%clk 0:01:02.2]}
25... Ra8 {[%clk 0:00:57.8]} 26. Qc7 {[%clk 0:00:59.3]} 26... Rfc8 {[%clk
0:00:53.5]} 27. Qa5 {[%clk 0:00:53.1]} 27... Qe8 {[%clk 0:00:52.5]} 28. Rb7
{[%clk 0:00:48.7]} 28... Nf4 {[%clk 0:00:49.3]} 29. Qd2 {[%clk 0:00:36.6]} 29...
Bxa4 {[%clk 0:00:45.8]} 30. Ra1 {[%clk 0:00:31.5]} 30... Bxc2 {[%clk 0:00:43.6]}
31. Qxc2 {[%clk 0:00:31.8]} 31... Rcb8 {[%clk 0:00:40.1]} 32. Rab1 {[%clk
0:00:30.5]} 32... Rxb7 {[%clk 0:00:39.6]} 33. Rxb7 {[%clk 0:00:30.2]} 33... a5
{[%clk 0:00:40.1]} 34. Rb3 {[%clk 0:00:21.3]} 34... a4 {[%clk 0:00:39.4]} 35.
Ra3 {[%clk 0:00:21.3]} 35... Qd7 {[%clk 0:00:18.3]} 36. Nh4 {[%clk 0:00:20.3]}
36... Qa7 {[%clk 0:00:12.7]} 37. Nf5 {[%clk 0:00:19.2]} 37... Qa6 {[%clk
0:00:07.7]} 38. Kh2 {[%clk 0:00:16.1]} 38... Kh7 {[%clk 0:00:07.4]} 39. g3
{[%clk 0:00:15.3]} 39... Nh5 {[%clk 0:00:06.7]} 40. Qe2 {[%clk 0:00:14.6]} 40...
g6 {[%clk 0:00:05.9]} 41. Ne7 {[%clk 0:00:14.4]} 41... Nf6 {[%clk 0:00:04.2]}
42. f4 {[%clk 0:00:13.1]} 42... Qa5 {[%clk 0:00:02]} 43. fxe5 {[%clk 0:00:12.1]}
43... dxe5 {[%clk 0:00:01.4]} 44. Qf2 {[%clk 0:00:10.9]} 44... Qb4 {[%clk
0:00:01.4]} 45. Qxf6 {[%clk 0:00:09.9]} 45... Qxa3 {[%clk 0:00:01.7]} 46. Qxf7+
{[%clk 0:00:09.8]} 46... Kh8 {[%clk 0:00:01.9]} 47. Nxg6# {[%clk 0:00:10]} 1-0

[Event "*** Titled Tuesday Blitz"]
[Site "Chess.com"]
[Date "2020.03.03"]
[Round "6"]
[White "farzadbfd"]
[Black "IMDT02"]
[Result "0-1"]
[WhiteElo "2619"]
[BlackElo "2489"]
[TimeControl "180+1"]
[EndTime "10:03:53 PST"]
[Termination "IMDT02 won by resignation"]

1. e4 {[%clk 0:03:00.9]} 1... c5 {[%clk 0:02:59.8]} 2. c3 {[%clk 0:03:00.2]}
2... Nf6 {[%clk 0:02:59.6]} 3. e5 {[%clk 0:03:00.1]} 3... Nd5 {[%clk 0:03:00.1]}
4. Nf3 {[%clk 0:03:01]} 4... Nc6 {[%clk 0:02:59.9]} 5. Bc4 {[%clk 0:03:01.5]}
5... Nb6 {[%clk 0:02:59.9]} 6. Bb3 {[%clk 0:03:01.2]} 6... d5 {[%clk 0:03:00.5]}
7. exd6 {[%clk 0:02:56.5]} 7... Qxd6 {[%clk 0:03:00.7]} 8. d4 {[%clk 0:02:53.3]}
8... cxd4 {[%clk 0:03:00.2]} 9. cxd4 {[%clk 0:02:53.4]} 9... e6 {[%clk 0:02:51]}
10. O-O {[%clk 0:02:52.5]} 10... Be7 {[%clk 0:02:51.1]} 11. Nc3 {[%clk
0:02:52.4]} 11... O-O {[%clk 0:02:51.3]} 12. Be3 {[%clk 0:02:52.8]} 12... Nd5
{[%clk 0:02:50.1]} 13. Qe2 {[%clk 0:02:50.7]} 13... b6 {[%clk 0:02:43.3]} 14.
Rad1 {[%clk 0:02:44.2]} 14... Bb7 {[%clk 0:02:43.4]} 15. Rfe1 {[%clk 0:02:39.7]}
15... Rac8 {[%clk 0:02:41.9]} 16. Bd2 {[%clk 0:02:32.3]} 16... Nxc3 {[%clk
0:02:25.5]} 17. bxc3 {[%clk 0:02:29.1]} 17... Na5 {[%clk 0:02:25.7]} 18. Bc2
{[%clk 0:02:29.4]} 18... Bf6 {[%clk 0:02:23.4]} 19. Qd3 {[%clk 0:02:06.1]} 19...
g6 {[%clk 0:02:23.2]} 20. Ng5 {[%clk 0:01:57.6]} 20... Nc4 {[%clk 0:01:54.4]}
21. Qh3 {[%clk 0:01:56.9]} 21... h5 {[%clk 0:01:54.6]} 22. Bc1 {[%clk
0:01:29.5]} 22... Kg7 {[%clk 0:01:45.8]} 23. Re2 {[%clk 0:01:06.6]} 23... Bd5
{[%clk 0:01:33.1]} 24. Rde1 {[%clk 0:01:06.2]} 24... Na3 {[%clk 0:01:25.2]} 25.
Be4 {[%clk 0:00:53.5]} 25... Nb5 {[%clk 0:01:21.3]} 26. Rc2 {[%clk 0:00:26.1]}
26... Rfd8 {[%clk 0:00:40.8]} 27. Qd3 {[%clk 0:00:15.9]} 27... Bc4 {[%clk
0:00:25.8]} 28. Qf3 {[%clk 0:00:15.4]} 28... Qe7 {[%clk 0:00:21]} 29. h4 {[%clk
0:00:12.9]} 29... Bd5 {[%clk 0:00:18.8]} 30. Qg3 {[%clk 0:00:12.5]} 30... Bxe4
{[%clk 0:00:16.9]} 31. Nxe4 {[%clk 0:00:12.2]} 31... Nxd4 {[%clk 0:00:17]} 32.
cxd4 {[%clk 0:00:06.6]} 32... Rxc2 {[%clk 0:00:16.4]} 33. Nxf6 {[%clk
0:00:06.4]} 33... Qxf6 {[%clk 0:00:07.8]} 34. Bg5 {[%clk 0:00:06.8]} 34... Qxd4
{[%clk 0:00:08]} 35. Bxd8 {[%clk 0:00:07.3]} 35... Qxd8 {[%clk 0:00:08.7]} 36.
Qf3 {[%clk 0:00:07.1]} 36... Qf6 {[%clk 0:00:08.7]} 37. Qe3 {[%clk 0:00:07]}
37... Rxa2 {[%clk 0:00:08.6]} 38. Rd1 {[%clk 0:00:06.8]} 38... Ra1 {[%clk
0:00:08.7]} 39. Rxa1 {[%clk 0:00:05.6]} 39... Qxa1+ {[%clk 0:00:09.6]} 40. Kh2
{[%clk 0:00:06.4]} 40... Qf6 {[%clk 0:00:09.8]} 41. g3 {[%clk 0:00:06.9]} 41...
a5 {[%clk 0:00:10.2]} 42. Qxb6 {[%clk 0:00:06.6]} 42... a4 {[%clk 0:00:10.7]}
43. Qa7 {[%clk 0:00:06.4]} 43... a3 {[%clk 0:00:10.8]} 44. Qxa3 {[%clk
0:00:05.8]} 44... Qxf2+ {[%clk 0:00:11.3]} 45. Kh3 {[%clk 0:00:06.7]} 45... Qf1+
{[%clk 0:00:11.5]} 46. Kh2 {[%clk 0:00:07]} 46... Qe2+ {[%clk 0:00:12]} 47. Kh3
{[%clk 0:00:06.9]} 47... Qf1+ {[%clk 0:00:12]} 48. Kh2 {[%clk 0:00:07.2]} 48...
Qf6 {[%clk 0:00:12.9]} 49. Kh3 {[%clk 0:00:06.9]} 49... e5 {[%clk 0:00:13.4]}
50. Kh2 {[%clk 0:00:07.4]} 50... e4 {[%clk 0:00:13.8]} 51. Qe3 {[%clk
0:00:07.8]} 51... Qe5 {[%clk 0:00:13.8]} 52. Kh3 {[%clk 0:00:07.7]} 52... Qf5+
{[%clk 0:00:13.5]} 53. Kh2 {[%clk 0:00:07.7]} 53... Qf3 {[%clk 0:00:13.2]} 54.
Qd4+ {[%clk 0:00:07.5]} 54... Kh7 {[%clk 0:00:13.7]} 55. Qf6 {[%clk 0:00:03.8]}
55... Qxf6 {[%clk 0:00:13.2]} 0-1